Cogmind - Beta 15 @@@ ROGUE MODE // 2025.07.15 @ 12:04:12 Player: Carpathian Result: Self-destructed Performance ------------- Evolutions (5) 2500 Regions Visited (6) 1200 Robots Destroyed (23) 115 Value Destroyed (863) 863 Prototype IDs (2) 40 Alien Tech Used (0) 0 Bonus (364) 364 TOTAL SCORE: 5082 Bonus ------- Pacifist 364 Cogmind --------- Core Integrity 728/1000 Matter 255/300 Energy 100/100 System Corruption 5% Temperature Cool (0) Movement Core (50) Location -5/Upper Caves Parts ------- > --- POWER (2) -------- (None) > --- PROPULSION (2) --- (None) > --- UTILITY (10) ----- Armor Integrity Analyzer > --- WEAPON (3) ------- (None) > --- INVENTORY (5) ---- Gravmag Array Hardened Medium Armor Plating Relay Coupler [Heavy] (2) Peak State ------------ > --- POWER ------------ Improved Ion Engine > --- PROPULSION ------- Compact Wheel Armored Wheel > --- UTILITY ---------- Advanced Heat Sink Small Storage Unit Improved Trap Scanner Advanced Terrain Scanner Improved Targeting Computer > --- WEAPON ----------- Heavy Laser Heavy Machine Gun Heavy Flak Cannon > --- INVENTORY -------- Improved Deuterium Engine Fission Core Relay Coupler [Heavy] High-powered Shock Rifle Field Laser Field Laser Overtuned Barrage Gun [Rating: 39] Favorites ----------- Power Ion Engine Engine Ion Engine Power Core Fission Core Propulsion Light Treads Treads Light Treads Leg Flexi-carbon Leg Wheel Compact Wheel Hover Unit Gravmag Array Utility Small Storage Unit Device Advanced Terrain Scanner Storage Small Storage Unit Processor Improved Targeting Computer Protection Reflective Plating Weapon Small Laser Energy Gun Small Laser Energy Cannon Phase Cannon Ballistic Gun Assault Rifle Ballistic Cannon Heavy Flak Cannon Build | -11 -10 -10 -8 -6 -5 -5 ------- Run | Yrd Mat Sub Scr Fac Fac Upp Slots Evolved 10 | . . . . 8 2 . Power 1 | . . . . 1 . . Propulsion . | . . . . . . . Utility 8 | . . . . 6 2 . Weapon 1 | . . . . 1 . . Parts Attached 40 | 6 . . 1 31 . 2 Power 6 | 1 . . . 4 . 1 Engine 5 | 1 . . . 3 . 1 Core 1 | . . . . 1 . . Reactor . | . . . . . . . Propulsion 8 | 2 . . . 6 . . Treads 3 | 2 . . . 1 . . Leg 1 | . . . . 1 . . Wheel 2 | . . . . 2 . . Hover 2 | . . . . 2 . . Flight . | . . . . . . . Utility 7 | 1 . . 1 5 . . Device 3 | . . . . 3 . . Storage 1 | 1 . . . . . . Processor 2 | . . . 1 1 . . Hackware . | . . . . . . . Protection 1 | . . . . 1 . . Artifact . | . . . . . . . Weapon 19 | 2 . . . 16 . 1 Energy Gun 7 | 1 . . . 5 . 1 Energy Cannon 1 | . . . . 1 . . Ballistic Gun 8 | 1 . . . 7 . . Ballistic Cannon 3 | . . . . 3 . . Launcher . | . . . . . . . Special Weapon . | . . . . . . . Impact Weapon . | . . . . . . . Slashing Weapon . | . . . . . . . Piercing Weapon . | . . . . . . . Special Melee Weapon . | . . . . . . . Unidentified Prototypes 2 | . . . . 2 . . Parts Lost 23 | . . . . 17 . 6 Power 3 | . . . . 2 . 1 Propulsion 5 | . . . . 4 . 1 Utility 6 | . . . . 5 . 1 Weapon 9 | . . . . 6 . 3 Highest Loss Streak 12 | . . . . 12 . 6 To Critical Strikes . | . . . . . . . Average Backups 5 | 1 1 1 4 6 6 5 Power . | . 1 1 1 1 . . Propulsion . | . . . . . 2 1 Utility 1 | . . . . 1 2 2 Weapon 2 | . . . 2 3 2 1 Tool/Special . | . . . . . . . Unused Backups 9 | . . . . 4 . 5 Power 1 | . . . . 1 . . Propulsion 3 | . . . . 1 . 2 Utility 2 | . . . . . . 2 Weapon 3 | . . . . 2 . 1 Tool/Special . | . . . . . . . Average Slot Usage (%) 65 | . 85 85 94 53 35 32 Engine 8 | . 14 14 14 5 5 4 Treads 14 | . 28 28 28 6 . . Device 4 | . . . . 8 . . Storage 8 | . 14 14 14 6 5 4 Processor 5 | . . . 9 4 5 5 Energy Gun 7 | . 14 14 14 3 . . Ballistic Gun 10 | . 14 14 14 6 11 10 Ballistic Cannon 1 | . . . . 3 . . Peak Build Rating 39 | 6 6 6 9 39 31 32 Average Rating 20 | 4 6 6 7 28 31 28 On Entrance 12 | . 6 6 6 9 31 31 Naked Turns . | . . . . . . . Heaviest Build 35 | 13 13 13 13 35 26 26 Greatest Support 40 | 40 40 40 40 40 20 20 Greatest Overweight (x) 9 | . . . . 9 1 1 Average Overweight (x) . | . . . . . 1 . Largest Inventory Capacity 8 | 8 8 8 8 8 8 8 Average Capacity 7 | 7 8 8 8 8 8 7 Most Carried 8 | 5 1 2 6 8 7 8 Average Carried 5 | 1 1 1 4 6 7 6 Final Capacity 8 | 8 8 8 8 8 8 5 Final Carried 7 | 1 1 2 6 7 7 4 Class Distribution -------------------- 80% | Mutant 15% | Gunner 4% | Skirmisher Dominant Class ---------------- Mutant | -10/Materials Mutant | -10/Subcaves Mutant | -8/Scraptown Mutant | -6/Factory Mutant | -5/Factory Mutant | -5/Upper Caves Resources | -11 -10 -10 -8 -6 -5 -5 ----------- Run | Yrd Mat Sub Scr Fac Fac Upp Matter Collected 1106 | 171 95 . 10 724 . 106 Remotely . | . . . . . . . Salvage Created 1067 | . . . . 1005 . 62 Parts 50 | . . . . 47 . 3 Haulers Intercepted . | . . . . . . . Recyclers Shooed 5 | . . . . 5 . . Parts Field Recycled . | . . . . . . . Retrieved Matter . | . . . . . . . Parts Self-Destructed 7 | . . . . . . 7 Prevented . | . . . . . . . Kills | -11 -10 -10 -8 -6 -5 -5 ------- Run | Yrd Mat Sub Scr Fac Fac Upp Combat Hostiles Destroyed 17 | . . . . 16 . 1 Guns 9 | . . . . 8 . 1 Cannons 6 | . . . . 6 . . Classes Destroyed 7 | . . . . 7 . . Worker 4 | . . . . 4 . . Recycler 2 | . . . . 2 . . Swarmer 4 | . . . . 4 . . Grunt 6 | . . . . 5 . 1 Sentry 3 | . . . . 3 . . Hunter 2 | . . . . 2 . . Programmer 2 | . . . . 2 . . Best Kill Streak 4 | . . . . 4 . 1 Combat Bots Only 4 | . . . . 4 . 1 Max Kills in Single Turn 2 | . . . . 2 . 1 Gunslinging . | . . . . . . . Exploded . | . . . . . . . Melee . | . . . . . . . Uniques/NPCs Destroyed . | . . . . . . . Combat | -11 -10 -10 -8 -6 -5 -5 -------- Run | Yrd Mat Sub Scr Fac Fac Upp Hostile Shots Fired 390 | . 2 . . 330 4 54 Missed 117 | . 1 . . 98 1 17 Hits 273 | . 1 . . 232 3 37 Projectile 273 | . 1 . . 232 3 37 Critical Strikes 11 | . . . . 5 1 5 Part Disruptions 1 | . . . . 1 . . Damage Taken 3791 | . 12 . . 2910 60 809 Core 974 | . 12 . . 690 19 253 Absorbed by Shields . | . . . . . . . Ignored by Resistances 39 | . . . . 39 . . Core Remaining (%) 71 | 100 . . 95 18 . . Volleys Fired 82 | . 2 . . 74 . 6 Largest 3 | . 2 . . 3 . 2 Hottest 192 | . 60 . . 192 . 61 Shots Fired 182 | . 4 . . 168 . 10 Gun 138 | . 4 . . 124 . 10 Cannon 44 | . . . . 44 . . Launcher . | . . . . . . . Special . | . . . . . . . Kinetic 122 | . 2 . . 112 . 8 Thermal 46 | . 2 . . 44 . . Explosive . | . . . . . . . Electromagnetic 14 | . . . . 12 . 2 Robot Hit Streak 13 | . 1 . . 13 . 6 Robot Miss Streak 7 | . 2 . . 7 . 1 Penetration Max . | . . . . . . . Secondary Targets 2 | . . . . 2 . . Max Gunslinging Chain 1 | . . . . 1 . . Shots Hit Robots 125 | . 1 . . 115 . 9 Core Hits 68 | . . . . 64 . 4 Critical Kills 1 | . . . . . . 1 Critical Parts Destroyed 1 | . . . . . . 1 Critical Strikes 2 | . . . . . . 2 Destroy 2 | . . . . . . 2 Melee Attacks . | . . . . . . . Impact . | . . . . . . . Slashing . | . . . . . . . Piercing . | . . . . . . . Sneak Attacks . | . . . . . . . Combat Hostiles . | . . . . . . . Follow-up Attacks . | . . . . . . . Damage Inflicted 2736 | . 11 . . 2607 . 118 Guns 1867 | . 11 . . 1738 . 118 Cannons 869 | . . . . 869 . . Explosions . | . . . . . . . Melee . | . . . . . . . Ramming . | . . . . . . . Kinetic 1950 | . 11 . . 1828 . 111 Thermal 591 | . . . . 591 . . Explosive . | . . . . . . . Electromagnetic 195 | . . . . 188 . 7 Impact . | . . . . . . . Slashing . | . . . . . . . Piercing . | . . . . . . . Highest Corruption 5 | . . . . 3 . 5 Average Corruption 1 | . . . . 1 . 1 Corruption Purged . | . . . . . . . Corruption Blocked . | . . . . . . . Effects 18 | . . . . 14 . 4 Message Errors 6 | . . . . 5 . 1 Matter Fused 4 | . . . . 2 . 2 Heat Flow Errors 3 | . . . . 3 . . Energy Discharges 2 | . . . . 2 . . Data Loss (minor) 2 | . . . . 1 . 1 Weapon Failures 1 | . . . . 1 . . Overload Shots . | . . . . . . . Overflow Damage 21 | . . . . 21 . . Projectiles 21 | . . . . 21 . . Explosions . | . . . . . . . Melee . | . . . . . . . Knockbacks 14 | . . . . 14 . . Impact . | . . . . . . . Kinetic 13 | . . . . 13 . . Secondary 1 | . . . . 1 . . Self-Inflicted Damage . | . . . . . . . Shots . | . . . . . . . Rammed . | . . . . . . . Targets Rammed . | . . . . . . . Kicked . | . . . . . . . Crushed . | . . . . . . . Highest Temperature 654 | . 6 . . 654 . 16 Average Temperature 181 | . 6 . . 185 . 14 Received Heat Transfer 690 | . 6 . . 531 . 153 Effects 14 | . . . . 14 . . Shutdowns 1 | . . . . 1 . . Energy Bleed 3 | . . . . 3 . . Interference 5 | . . . . 5 . . Matter Decay 1 | . . . . 1 . . Damage (minor) 3 | . . . . 3 . . Damage (core) 1 | . . . . 1 . . Siege Activations . | . . . . . . . Martial Activations . | . . . . . . . Shielding Activations . | . . . . . . . Robots Disrupted . | . . . . . . . Combat Hostiles . | . . . . . . . Robots Corrupted 1 | . . . . 1 . . Combat Hostiles 1 | . . . . 1 . . Parts Fried 3 | . . . . 3 . . Impact Corruptions . | . . . . . . . Robots Melted 1 | . . . . 1 . . Combat Hostiles 1 | . . . . 1 . . Parts Melted 4 | . . . . 4 . . Heat Transferred 975 | . . . . 975 . . Parts Sabotaged . | . . . . . . . Parts Stolen . | . . . . . . . Parts Stripped . | . . . . . . . Power Chain Reactions . | . . . . . . . Alert | -11 -10 -10 -8 -6 -5 -5 ------- Run | Yrd Mat Sub Scr Fac Fac Upp Maximum Alert Level . | . . . . . . . Low Security (%) 100 | 100 100 . . 100 100 . Level 1 . | . . . . . . . Level 2 . | . . . . . . . Level 3 . | . . . . . . . Level 4 . | . . . . . . . Level 5 . | . . . . . . . High Security . | . . . . . . . Max Security . | . . . . . . . Peak Influence 85 | . . . . 85 10 . Initial 10 | . . . . . 10 . Average 14 | . . . . 16 1 . Influence Increases 470 | . . . . 450 . 20 Destroy 0b10 Robot/C 340 | . . . . 320 . 20 Destroy 0b10 Robot/NC 30 | . . . . 30 . . Destroy Leader 80 | . . . . 80 . . Successful Hack 16 | . . . . 16 . . Destroy Structure 4 | . . . . 4 . . Influence Decreases 470 | . . . . 428 22 20 Entered New Map 12 | . . . . . 12 . Time Decay 333 | . . . . 313 10 10 Lost Part 125 | . . . . 115 . 10 Squads Dispatched 4 | . 2 . . 2 . . Investigation 1 | . 1 . . . . . Extermination 2 | . . . . 2 . . Reinforcement 1 | . 1 . . . . . Assault . | . . . . . . . Garrison . | . . . . . . . Intercept . | . . . . . . . Searches Triggered . | . . . . . . . Construction Impeded . | . . . . . . . Haulers Reinforced . | . . . . . . . Active Scanning Responses . | . . . . . . . Cargo Convoy Interrupts . | . . . . . . . Stealth | -11 -10 -10 -8 -6 -5 -5 --------- Run | Yrd Mat Sub Scr Fac Fac Upp Distress Signals 1 | . . . . 1 . . Communications Jammed . | . . . . . . . Distress Signals . | . . . . . . . Times Spotted 30 | . 3 . . 21 1 5 Peak Tracking Total 5 | . 2 . . 5 1 5 Tactical Retreats . | . . . . . . . Traps | -11 -10 -10 -8 -6 -5 -5 ------- Run | Yrd Mat Sub Scr Fac Fac Upp Traps Triggered 1 | . . . . 1 . . Indirectly . | . . . . . . . Trap Hack Attempts . | . . . . . . . Triggered . | . . . . . . . Disarmed . | . . . . . . . Reprogrammed . | . . . . . . . Reused . | . . . . . . . Traps Extracted . | . . . . . . . Installed . | . . . . . . . Triggered . | . . . . . . . Machines | -11 -10 -10 -8 -6 -5 -5 ---------- Run | Yrd Mat Sub Scr Fac Fac Upp Machines Disabled . | . . . . . . . Max in Single Turn . | . . . . . . . Machines Repaired . | . . . . . . . Machines Dismantled . | . . . . . . . Machines Sabotaged . | . . . . . . . Overloaded Fab Kills . | . . . . . . . Hacking | -11 -10 -10 -8 -6 -5 -5 --------- Run | Yrd Mat Sub Scr Fac Fac Upp Machines Accessed 6 | . . . 1 2 2 1 Terminals 2 | . . . . 2 . . Fabricators . | . . . . . . . Repair Stations 1 | . . . . . 1 . Recycling Units . | . . . . . . . Scanalyzers 1 | . . . . . 1 . Garrison Access . | . . . . . . . Total Hacks 8 | . . . 1 2 4 1 Successful 4 | . . . 1 1 1 1 Failed 4 | . . . . 1 3 . Catastrophic . | . . . . . . . Database Lockouts . | . . . . . . . Manual . | . . . . . . . Terminals 2 | . . . . 2 . . Fabricators . | . . . . . . . Repair Stations 3 | . . . . . 3 . Recycling Units . | . . . . . . . Scanalyzers 1 | . . . . . 1 . Garrison Access . | . . . . . . . Terminal Hacks 3 | . . . 1 1 . 1 Record 1 | . . . 1 . . . Open Door 1 | . . . . . . 1 Branch Access Points 1 | . . . . 1 . . Fabricator Hacks . | . . . . . . . Repair Station Hacks . | . . . . . . . Recycling Unit Hacks . | . . . . . . . Scanalyzer 1 | . . . . . 1 . Insert Component 1 | . . . . . 1 . Garrison Access Hacks . | . . . . . . . Unauthorized Hacks . | . . . . . . . Terminals . | . . . . . . . Fabricators . | . . . . . . . Repair Stations . | . . . . . . . Recycling Units . | . . . . . . . Scanalyzers . | . . . . . . . Garrison Access . | . . . . . . . Data Cores Recovered . | . . . . . . . Used . | . . . . . . . Hacking Detections 3 | . . . . 2 1 . Full Trace Events . | . . . . . . . Feedback Events . | . . . . . . . Feedback Blocked . | . . . . . . . Robot Schematics Acquired . | . . . . . . . Robots Built . | . . . . . . . Authchips . | . . . . . . . Time . | . . . . . . . Total Robot Build Rating . | . . . . . . . Part Schematics Acquired . | . . . . . . . Parts Built . | . . . . . . . Authchips . | . . . . . . . Time . | . . . . . . . Total Part Build Rating . | . . . . . . . Parts Repaired . | . . . . . . . Time . | . . . . . . . Parts Recycled . | . . . . . . . Recycled Matter . | . . . . . . . Retrieved Matter . | . . . . . . . Retrieved Components . | . . . . . . . Parts Scanalyzed . | . . . . . . . Part Schematics Acquired . | . . . . . . . Parts Damaged . | . . . . . . . Bothacking | -11 -10 -10 -8 -6 -5 -5 ------------ Run | Yrd Mat Sub Scr Fac Fac Upp Used RIF Installer . | . . . . . . . Robots Hacked . | . . . . . . . Non-combat . | . . . . . . . Combat . | . . . . . . . Robot Hacks Applied . | . . . . . . . Relay Couplers Released . | . . . . . . . Fabnet Peak Effective % . | . . . . . . . Robots Rewired . | . . . . . . . Allies Hacked . | . . . . . . . Hacks Repelled . | . . . . . . . Allies | -11 -10 -10 -8 -6 -5 -5 -------- Run | Yrd Mat Sub Scr Fac Fac Upp Total Allies . | . . . . . . . Largest Group . | . . . . . . . Highest-Rated Group . | . . . . . . . Highest-Rated Ally . | . . . . . . . Total Orders . | . . . . . . . Ally Attacks . | . . . . . . . Total Damage . | . . . . . . . Kills . | . . . . . . . Allies Corrupted . | . . . . . . . Allies Melted . | . . . . . . . Intel | -11 -10 -10 -8 -6 -5 -5 ------- Run | Yrd Mat Sub Scr Fac Fac Upp Active Infowar (turns) 1605 | . . . . 1605 . . Terrain 1605 | . . . . 1605 . . Traps 170 | . . . . 170 . . Robot Analysis Total . | . . . . . . . Derelict Logs Recovered 1 | . . . 1 . . . Drone Launches . | . . . . . . . Drone Recoveries . | . . . . . . . Exploration | -11 -10 -10 -8 -6 -5 -5 ------------- Run | Yrd Mat Sub Scr Fac Fac Upp Turns Passed 3580 | 83 158 249 922 1832 116 220 Spaces Moved 2072 | 59 96 156 573 923 106 159 Core 49 | 21 . . . 23 . 5 Treads 1390 | 38 96 156 573 527 . . Legs 55 | . . . . 55 . . Wheels 128 | . . . . 128 . . Hover 450 | . . . . 190 106 154 Flight . | . . . . . . . Fastest Speed 50 | 50 160 160 160 95 110 50 Average Speed 150 | 120 160 160 160 156 110 107 Slowest Speed 500 | 160 160 160 160 500 110 110 Overloaded Moves . | . . . . . . . Propulsion Burnouts . | . . . . . . . Robots Hopped . | . . . . . . . Potential Cave-ins . | . . . . . . . Cave-ins Triggered . | . . . . . . . Exploration Rate (%) 17 | 3 20 17 33 24 3 22 Regions Visited 6 Branch Regions 3 Pre-discovered Areas . | . . . . . . . Known Exits Taken . | . . . . . . . Unknown Exits Taken 6 | 1 1 1 1 1 1 . Scrap Searched 8 | . . . 6 . . 2 Spaces Dug . | . . . . . . . Terrain Destroyed 3 | . . . . 3 . . Melee . | . . . . . . . Projectile 3 | . . . . 3 . . AOE . | . . . . . . . Terrain Rammed . | . . . . . . . Walls Destroyed . | . . . . . . . Machines Disabled . | . . . . . . . Actions | -11 -10 -10 -8 -6 -5 -5 --------- Run | Yrd Mat Sub Scr Fac Fac Upp Total 2380 | 71 97 156 578 1175 105 198 Wait 125 | . . . . 97 . 28 Move 2066 | 58 95 155 572 922 105 159 Hop . | . . . . . . . Pick Up 44 | 7 . 1 5 30 . 1 Fast Attach 5 | . . . . 5 . . Attach 29 | 6 . . 1 21 . 1 Detach . | . . . . . . . Swap 8 | . . . . 7 . 1 Drop 21 | . . . . 19 . 2 Fire 82 | . 2 . . 74 . 6 Melee . | . . . . . . . Ram . | . . . . . . . Kick . | . . . . . . . Crush . | . . . . . . . Escape Stasis . | . . . . . . . Rewire . | . . . . . . . Trap . | . . . . . . . Miscellaneous . | . . . . . . . Route ------- -11/Scrapyard -10/Materials (discovered 2 exits: [*Min] / [*Sub]) -10/Subcaves -8/Scraptown -6/Factory (discovered 3 exits: *Fac / Low x2) -5/Factory -5/Upper Caves History --------- Turn | Location | Event 5 | -11/Scrapyard | Discovered new exit (range 16) 84 | -11/Scrapyard | Entered Materials 85 | -10/Materials | Met a group of wandering Federalists 94 | -10/Materials | Discovered new exit (range 16) 239 | -10/Materials | Discovered new exit (range 3) 242 | -10/Materials | Entered Subcaves 243 | -10/Subcaves | Continued accompanying wandering Federalists (4) 243 | -10/Subcaves | Approached by a straggling Scientist 313 | -10/Subcaves | Build established: Mutant 454 | -10/Subcaves | A swath of the cavern ceiling suddenly collapsed 480 | -10/Subcaves | Wandering Federalist uncovered a shortcut to Scraptown 491 | -10/Subcaves | Entered Scraptown 863 | -8/Scraptown | Visited Red Mages 984 | -8/Scraptown | Visited Bundlers 1129 | -8/Scraptown | Visited Assassins FH 1187 | -8/Scraptown | Visited SPCMW 1325 | -8/Scraptown | Scanned Subdweller tech in exchange for log data 1331 | -8/Scraptown | Learned Factory garrison access intel 1353 | -8/Scraptown | Discovered new exit (range 13) 1413 | -8/Scraptown | Entered Factory 1413 | -6/Factory | Evolved 8 slots: Power x1, Utility x6, Weapon x1 1414 | -6/Factory | Loaded intel: 4 garrison access locations 1991 | -6/Factory | Build established: Gunner 2151 | -6/Factory | Identified exit to Lower Caves 2269 | -6/Factory | Lost 3 parts (2n1w) 2537 | -6/Factory | Build established: Mutant 2784 | -6/Factory | Core integrity fell below 50% 2800 | -6/Factory | Lost 12 parts (2p2n3u5w) 3184 | -6/Factory | Core integrity fell below 20% 3226 | -6/Factory | Discovered new exit (range 9) 3245 | -6/Factory | Entered another Factory area 3245 | -5/Factory | Evolved 2 slots: Utility x2 3313 | -5/Factory | Discovered new exit (range 16) 3361 | -5/Factory | Entered Upper Caves 3581 | -5/Upper Caves | Self-destructed Last Messages --------------- 03558_ Slug penetrates G-50 Soldier. 03558_ G-50 Soldier suffers critical hit (Destroy). 03558_ G-50 Soldier destroyed. 03558_ HV Slug penetrates Wall. 03558_ HV Slug penetrates P-70 Sage. 03560_ Imp. Deuterium Engine destroyed. 03561_ HV Slug penetrates P-70 Sage. 03561_ Penetrated by Slug. 03561_ Slug penetrates Wall. 03562_ Hyp. Gauss Rifle destroyed. 03563_ P-70 Sage resets P-70 Sage, system corruption cleaned. 03564_ Penetrated by Slug. 03564_ Gauss Rifle destroyed. 03567_ Shock Rifle destroyed. 03567_ Gravmag Array destroyed. 03568_ Carbon-fiber Leg fries itself beyond repair. 03568_ Critical hit (Burn: +37). 03570_ Hvy. Laser fries itself beyond repair. 03572_ System corrupted: Matter fused (-7). 03573_ P-70 Sage resets P-70 Sage, system corruption cleaned. Map ----- +----------------------------------------------------+ | ?????????????????????????????????????????????????? | | ?????????????????????????????????????????????????? | | ???????????????????????##????????????????????????? | | ???????????????????????# #####???##??????????????? | | ???????????????????????# ?? ???????????????? | | ????????????????????#### # ?# ????????????????? | | ????????????????????? # ?????????????????? | | ??????????????????????? # #?????????????????? | | ????????????????????????? #?????????????????? | | ??????????????????????????# # #####?????????????? | | ???????????????????????#### # ########??????? | | ??????????????# ???????# # #??????? | | ??????????????? ???# ## # #??????? | | ???????????????# # ## # ##### #??????? | | ??????????????????# #####??## ######?? | | ???????????????????# #### !###??????# #?? | | ???????????????????#????### ##?###??# #### #?? | | ?????????????? #### ???# /*## ### ##??# #?# | | ????????????? ??# = ##???# ### | | ????????????? ## #?????# | | ??????????????????# #### #?????##### | | ??????????????????### #####?##??????????? | | ????????????????????# #?????????????? | | ???????????????????# ### ### #?????????????? | | ???????????????????# #### #??# #????????????? | | ???????????????????# ## @# #??## #??????????## | | ???????????????????# #" # ##"X# #????????### | | ???????????????????# ?#"gp# X" #? #???????## | | ???????????????????#??#"p Y[#" "# #??????# | | ??????????????????????#" "#? #?????#### | | ??????????????????????#" "#?? ???####?## | | ??????????????????????#" = "#??? ##??## ### | | ??????????????????????#"" ""#????????# | | ??????????????????????##"" %!"""##??????### # # | | ???????????????????????##"""""###??????## # ## | | ????????????????????????#######????????# # ##? | | ???????????????????????????????????????# ##?? | | ???????????????????????????????????????# ##??? | | ???????????????????????????????????????## ##???? | | ????????????????????????????????????????#####????? | | ?????????????????????????????????????????????????? | | ?????????????????????????????????????????????????? | | ?????????????????????????????????????????????????? | | ?????????????????????????????????????????????????? | | ?????????????????????????????????????????????????? | | ?????????????????????????????????????????????????? | | ?????????????????????????????????????????????????? | | ?????????????????????????????????????????????????? | | ?????????????????????????????????????????????????? | | ?????????????????????????????????????????????????? | +----------------------------------------------------+ Best States ------------- Heat Dissipation 56 Energy Generation 18 Energy Capacity 310 Matter Stores 300 Matter Capacity 300 Sight Range 16 Terrain Scan Range 20 Terrain Scan Density 10 Armor Coverage 150 Resistance: TH 10 Evasion (%) 50 Targeting Accuracy 6 Armor Integrity Analysis 30 Recoil Reduction 2 Item Schematics ----------------- None Robot Schematics ------------------ None Fabricated ------------ Nothing Repaired ---------- Nothing Alien Tech Used ----------------- None Achievements -------------- None Challenges ------------ None Game ------ Seed NovaFieldthrustActivator Manual? 0 Play Time 00:23:51 Cumulative 32.8 hours Start 2025.07.15 @ 11:41:51 End 2025.07.15 @ 12:04:12 Sessions 1 Manual Loads 0 Difficulty Rogue Special Mode None Game No. 176 Rogue 176 Adventurer 0 Explorer 0 Win Type - Total 0 Types 0/0/0/0/0/0/0/0/0/0 Lore% 9 Gallery% 24 Achievement% 19 Wizard Run 0 Options --------- Layout 0 ASCII 0 Keyboard 0 Movement Arrows Keybinds 0 Fullscreen 2 Font 24/Cog Map View 76x50 Zoom Use 0% Tactical HUD 1 Map Filters NONE Filters NONE Steam 1 RUN: f0157e56-e41b-40e9-8877-847eea191422